bitfinex-derivatives/quotes_ETHF0:USTF0_20250411
["timestamp","ask_amount","ask_price","bid_price","bid_amount"]
[1744363308887,4.49712,1552.1,1552.0,7.42e-06]
[1744363313585,5.14192,1552.1,1552.0,7.42e-06]
[1744363314585,10.14192,1552.1,1552.0,7.42e-06]
[1744363315990,5.14192,1552.1,1552.0,7.42e-06]
[1744363318083,4.49712,1552.1,1552.0,1.28940742]
[1744363318287,4.49712,1552.1,1552.0,7.42e-06]
[1744363318595,6.22352,1552.1,1552.0,7.42e-06]
[1744363319295,6.22352,1552.1,1552.0,1.74070742]
[1744363319996,6.22352,1552.1,1552.0,3.03010742]
[1744363320194,6.22352,1552.1,1552.0,1.74070742]
[1744363320394,6.22352,1552.1,1552.0,7.42e-06]
[1744363320894,11.22352,1552.1,1552.0,7.42e-06]
[1744363321090,1.28982,1551.5,1551.4,7.11291996]
[1744363321298,4.49762,1551.5,1551.4,4.59007996]
[1744363321482,9.49762,1551.5,1551.4,2.49827996]
[1744363321989,11.18012,1551.5,1551.4,2.49827996]
[1744363322193,11.18012,1551.5,1551.4,12.28607494]
[1744363322390,6.18012,1551.5,1551.4,12.28607494]
[1744363322792,6.18012,1551.5,1551.4,18.57597494]
[1744363322793,3.2078,1551.5,1551.4,18.57597494]
[1744363322997,3.2078,1551.5,1551.4,22.68237494]
[1744363323495,3.2078,1551.7,1551.6,1.28973]
[1744363323698,3.2078,1551.7,1551.4,24.61720494]
[1744363323699,1.28975,1551.6,1551.5,1.6021]
[1744363323892,1.28982,1551.5,1551.4,12.28607494]
[1744363324198,7.01772,1551.5,1551.4,12.28607494]
[1744363324402,8.64902,1551.5,1551.4,12.28607494]
[1744363325198,4.8391,1551.5,1551.4,15.17807494]
[1744363325499,4.49762,1551.5,1551.4,13.88817494]
[1744363325691,3.2078,1551.5,1551.4,21.41387494]
[1744363326299,4.49743,1551.8,1551.7,1.28965]
[1744363326499,12.05279909,1551.8,1551.7,1.28965]
[1744363326801,1.28967,1551.7,1551.5,1.7052]
[1744363327201,3.2078,1551.6,1551.5,2.99496]
[1744363327402,4.49753,1551.6,1551.5,43.79496]
[1744363327999,3.2078,1551.6,1551.5,43.79496]
[1744363328202,8.84501909,1551.8,1551.7,1.28965]
[1744363328600,8.84501909,1551.8,1551.7,2.98955]
[1744363328905,8.84501909,1551.8,1551.7,1.6999]
[1744363329107,10.45381909,1551.8,1551.7,1.6999]
[1744363329307,1.28965,1551.7,1551.6,1.3041]
[1744363329510,3.2078,1551.7,1551.6,2.59383]
[1744363329805,3.2078,1551.7,1551.6,4.29373]
[1744363330106,4.49745,1551.7,1551.6,3.004]
[1744363330405,4.49745,1551.7,1551.6,4.29373]
[1744363330901,4.49745,1551.7,1551.6,3.004]
[1744363331600,3.2078,1551.7,1551.4,1.2358]
[1744363331804,1.28973,1551.6,1551.5,3.0168]
[1744363332006,1.28973,1551.6,1551.5,1.2869]
[1744363332307,4.49751,1551.7,1551.6,1.28973]
[1744363332493,1.28973,1551.6,1551.5,1.2869]
[1744363332804,2.88833,1551.6,1551.5,1.2869]
[1744363333001,1.2899,1551.4,1551.3,0.00967742]
[1744363333306,4.4977,1551.4,1551.3,0.00967742]
[1744363333698,5.7732,1551.4,1551.3,0.00967742]
[1744363333899,7.3718,1551.4,1551.3,0.00967742]
[1744363334806,1.2903,1551.0,1550.8,1.29035]
[1744363335004,3.2078,1551.0,1550.7,20.19569355]
[1744363335205,4.4982,1550.8,1550.7,21.48617355]
[1744363335406,3.03747,1550.9,1550.8,1.2904]
[1744363335600,3.2078,1551.0,1550.9,1.29032]
[1744363336308,4.49803,1551.0,1550.9,2.56142]
[1744363336611,3.2078,1551.0,1550.9,2.56142]
[1744363337206,0.00967742,1551.1,1551.0,1.29023]
[1744363337710,0.00967742,1551.1,1551.0,9.49803]
[1744363338301,3.2078,1551.5,1551.4,1.2899]
[1744363338700,1.28965,1551.7,1551.6,1.28973]
[1744363338910,4.49745,1551.7,1551.6,1.28973]
[1744363339406,5.02331609,1551.8,1551.7,1.28965]
[1744363339614,6.31290609,1551.8,1551.6,1.28966]
[1744363339804,6.31290609,1551.8,1551.6,0.00967742]
[1744363340108,5.02331609,1551.8,1551.7,1.28965]
[1744363340313,4.7891,1551.9,1551.8,1.28957]
[1744363340504,1.28957,1551.8,1551.7,1.2346]
[1744363340898,4.7891,1551.9,1551.8,1.28957]
[1744363341201,4.49729,1551.9,1551.8,1.28957]
[1744363341403,1.28949,1551.9,1551.8,1.28957]
[1744363342709,3.2078,1551.9,1551.8,1.28957]
[1744363342906,5.02331609,1552.1,1552.0,1.2894]
[1744363344202,5.02331609,1552.1,1552.0,4.4972]
[1744363344397,8.23111609,1552.5,1552.4,1.28907]
[1744363345098,8.23111609,1552.5,1552.4,2.50927]
[1744363345808,5.02331609,1552.5,1552.4,2.50927]
[1744363346007,5.02331609,1552.5,1552.4,7.50927]
[1744363346909,3.42711867,1552.5,1552.4,51.51707]
[1744363347108,2.94451867,1552.5,1552.4,51.51707]
[1744363347711,3.2078,1552.9,1552.4,53.45061]
[1744363347906,4.49648,1552.9,1552.7,1.28877]
[1744363348111,4.49648,1552.9,1552.8,1.6269]
[1744363348313,3.2078,1552.9,1552.8,2.91564]
[1744363348909,4.49645,1552.9,1552.8,1.6269]
[1744363349213,3.2078,1552.9,1552.8,1.28874]
[1744363351200,4.49645,1552.9,1552.7,2.91564]
[1744363351506,4.8457,1552.9,1552.7,1.6269]
[1744363351811,4.8457,1552.9,1552.6,4.43275]
[1744363351812,3.2078,1552.9,1552.8,2.99164]
[1744363352015,1.28851,1553.1,1552.9,1.28859]
[1744363352216,1.28851,1553.1,1553.0,1.7029]
[1744363352415,2.92641,1553.1,1553.0,1.7029]
[1744363352610,1.6379,1553.1,1553.0,2.99147]
[1744363352816,1.28836,1553.3,1553.1,1.28849]
[1744363353012,2.92631,1553.2,1553.1,2.99139]
[1744363353611,3.2078,1553.4,1553.1,1.7029]
[1744363353813,3.2078,1553.4,1553.3,1.28832]
[1744363354110,4.1577,1553.5,1553.3,1.28832]
[1744363354315,1.7197,1553.4,1553.3,1.28832]
[1744363355013,5.72644,1553.6,1553.3,1.6458]
[1744363355207,7.44614,1553.6,1553.4,1.28824]
[1744363355409,7.44614,1553.6,1553.5,1.28816]
[1744363355715,7.44614,1553.6,1553.4,1.6458]
[1744363355915,1.7197,1553.5,1553.4,2.93404]
[1744363356112,1.28824,1553.4,1553.3,0.00967742]
[1744363356714,6.09664,1553.4,1553.3,0.00967742]
[1744363357018,11.09664,1553.4,1553.3,0.00967742]
[1744363357315,7.25794,1553.4,1553.3,0.00967742]
[1744363357908,2.88884,1553.4,1553.3,0.00967742]
[1744363358717,6.09664,1553.4,1553.3,0.00967742]
[1744363360217,11.09664,1553.4,1553.3,0.00967742]
[1744363360921,11.09664,1553.4,1553.3,7.42e-06]
[1744363361216,11.09664,1553.4,1552.4,3.22268]
[1744363361217,3.22169,1552.9,1552.5,1.28894]
[1744363361520,4.4967,1552.7,1552.6,40.8]
[1744363362313,1.2889,1552.6,1552.5,0.00967742]
[1744363362619,2.9153,1552.6,1552.5,0.00967742]
[1744363362822,2.9153,1552.6,1552.5,40.80967742]
[1744363364218,4.0473,1552.6,1552.5,40.80967742]
[1744363364422,4.0473,1552.6,1552.5,0.00967742]
[1744363365821,2.7584,1552.6,1552.5,1.29866742]
[1744363366021,1.6264,1552.6,1552.5,1.29866742]
[1744363366328,0.00967742,1552.8,1552.7,1.28882]
[1744363366923,0.00967742,1552.8,1552.7,7.93262]
[1744363367925,0.00967742,1552.8,1552.7,9.14162]
[1744363369520,0.00967742,1552.8,1552.7,4.14162]
[1744363370422,0.00967742,1552.8,1552.7,9.14162]
[1744363372519,0.00967742,1552.8,1552.7,49.94162]
[1744363373322,0.00967742,1552.8,1552.7,44.94162]
[1744363373525,0.00967742,1552.8,1552.7,49.94162]
[1744363374224,1.29841742,1552.8,1552.7,44.94162]
[1744363374431,1.29841742,1552.8,1552.7,43.6528]
[1744363374617,6.29841742,1552.8,1552.7,40.8]
[1744363374822,1.2889,1552.6,1552.5,0.00967742]
[1744363375222,1.2889,1552.6,1552.5,42.09866742]
[1744363375424,4.1785,1552.6,1552.5,42.09866742]
[1744363375626,4.1785,1552.6,1552.5,40.80967742]
[1744363375832,4.1785,1552.6,1552.5,42.09866742]
[1744363376228,3.2078,1552.7,1552.6,1.2889]
[1744363376423,1.28882,1552.7,1552.6,2.9762]
[1744363376728,1.2889,1552.6,1552.5,40.80967742]
[1744363376929,3.0077,1552.6,1552.5,40.80967742]
[1744363377430,4.49669,1552.7,1552.5,40.80967742]
[1744363377630,6.22609,1552.7,1552.6,2.9666]
[1744363377933,4.9372,1552.7,1552.6,2.9666]
[1744363378326,0.00967742,1552.8,1552.7,1.28882]
[1744363379126,0.00967742,1552.8,1552.7,2.96652]
[1744363380331,1.29841742,1552.8,1552.7,2.96652]
[1744363380635,1.28882,1552.7,1552.6,2.45614]
[1744363380834,6.11402,1552.7,1552.6,4.14134]
[1744363381130,6.11402,1552.7,1552.6,1.6852]
[1744363381338,2.7423,1552.7,1552.6,1.2889]
[1744363381533,0.00967742,1552.8,1552.6,1.2889]
[1744363381534,1.29845742,1552.8,1552.6,1.6852]
[1744363381735,1.28882,1552.7,1552.6,2.97405]
[1744363382334,0.00967742,1552.8,1552.7,1.28882]
[1744363382934,0.00967742,1552.8,1552.7,2.97402]
[1744363384039,0.00967742,1552.8,1552.7,6.18182]
[1744363385643,0.00967742,1552.8,1552.7,11.18182]
[1744363385834,7.42e-06,1552.8,1552.7,11.18182]
[1744363387544,1.28826,1553.4,1552.7,11.18182]
[1744363387545,1.28826,1553.4,1553.2,1.28836]
[1744363387744,2.9332,1553.5,1553.4,1.28824]
[1744363387944,4.22136,1553.5,1553.3,1.28826]
[1744363388241,1.28824,1553.4,1553.2,5.32646]
[1744363388535,3.2078,1553.5,1553.4,1.28818]
[1744363388945,3.2078,1553.7,1553.6,1.28803]
[1744363389142,10.47969909,1553.8,1553.6,1.28803]
[1744363389337,1.6364,1553.7,1553.6,1.28803]
[1744363389842,3.2078,1553.7,1553.6,1.28807]
[1744363390045,7.55536909,1553.8,1553.7,1.28799]
[1744363390235,9.22426909,1553.8,1553.7,1.28799]
[1744363390641,1.6689,1553.8,1553.7,40.8]
[1744363390948,1.6689,1553.8,1553.7,42.08799]
[1744363391147,1.6689,1553.8,1553.7,43.76669]
[1744363391347,2.95681,1553.8,1553.7,40.8]
[1744363391550,1.6689,1553.8,1553.7,42.08799]
[1744363392336,6.05848909,1554.0,1553.9,1.28783]
[1744363392538,6.05848909,1554.0,1553.9,4.49563]
[1744363392746,6.05848909,1554.0,1553.9,1.28783]
[1744363392946,6.05848909,1554.0,1553.8,1.6787]
[1744363392947,8.94122909,1554.0,1553.8,2.96654]
[1744363393251,1.595,1553.9,1553.8,1.28791]
[1744363393446,1.595,1553.9,1553.7,40.8]
[1744363393645,1.28791,1553.8,1553.7,40.8]
[1744363393947,1.2881,1553.6,1553.4,1.28818]
[1744363394138,3.2078,1553.9,1553.3,6.0529]
[1744363394338,1.28795,1553.8,1553.5,3.2078]
[1744363394539,1.28795,1553.8,1553.6,42.08807]
[1744363394746,1.595,1553.7,1553.6,42.08807]
[1744363394951,1.595,1553.7,1553.6,40.8]
[1744363395146,1.595,1553.7,1553.6,42.08807]
[1744363395348,1.595,1553.7,1553.6,43.80267]
[1744363395643,2.88299,1553.7,1553.6,40.8]
[1744363396043,2.88301,1553.7,1553.4,1.6205]
[1744363396248,1.6464,1553.6,1553.5,1.28816]
[1744363396449,1.6464,1553.6,1553.5,42.08816]
[1744363396751,2.93447,1553.6,1553.5,40.8]
[1744363397153,1.6464,1553.6,1553.5,42.08816]
[1744363397350,2.93447,1553.6,1553.5,40.8]
[1744363397652,2.93447,1553.6,1553.5,60.99569355]
[1744363397844,1.6464,1553.6,1553.5,62.28385355]
[1744363398152,2.93447,1553.6,1553.5,62.28385355]
[1744363398348,7.93447,1553.6,1553.5,60.99569355]
[1744363398548,11.14227,1553.6,1553.5,60.99569355]
[1744363398946,11.14227,1553.6,1553.5,12.82399355]
[1744363400249,9.8542,1553.6,1553.5,12.82399355]
[1744363400551,1.1193,1553.9,1553.6,3.22019]
[1744363400750,1.6523,1553.9,1553.8,1.28791]
[1744363400942,1.6523,1553.9,1553.7,4.14593]
[1744363401145,1.28802,1553.7,1553.5,1.2205]
[1744363401344,2.94037,1553.6,1553.5,1.28808]
[1744363401646,1.6523,1553.6,1553.5,1.28808]
[1744363402153,1.6523,1553.6,1553.5,2.96658]
[1744363402349,12.42322634,1554.0,1553.5,45.6863]
[1744363402555,1.7484,1553.7,1553.6,1.28805]
[1744363402948,3.03639,1553.7,1553.6,1.28805]
[1744363403156,4.18869,1553.7,1553.5,42.08809]
[1744363403453,4.18874,1553.7,1553.5,42.08815]
[1744363403650,1.28807,1553.6,1553.5,40.8]
[1744363403850,1.28807,1553.6,1553.3,4.8863]
[1744363403851,3.03647,1553.6,1553.3,4.8863]
[1744363404048,1.28821,1553.5,1553.3,1.28831]
[1744363404245,1.7484,1553.4,1553.3,1.28831]
[1744363404442,1.7484,1553.4,1553.3,40.8]
[1744363404641,3.03664,1553.4,1553.3,40.8]
[1744363404847,1.28823,1553.5,1553.3,42.08832]
[1744363405153,1.187,1553.6,1553.5,1.28816]
[1744363405358,1.6534,1553.6,1553.5,4.49596]
[1744363405658,1.6534,1553.6,1553.5,1.28816]
[1744363405852,1.1523,1553.7,1553.6,1.28807]
[1744363406252,1.1549,1554.1,1553.6,5.0]
[1744363406558,1.6534,1554.0,1553.9,1.28781]
[1744363408357,2.94114,1554.0,1553.8,4.22975]
[1744363408752,1.7447,1553.9,1553.8,4.22975]
[1744363409259,4.0336,1554.1,1554.0,1.28774]
[1744363409748,4.49544,1554.2,1554.0,1.28774]
[1744363410253,1.7447,1554.1,1554.0,1.28774]
[1744363410453,1.7447,1554.1,1554.0,2.91814]
[1744363411556,3.66427,1554.4,1554.2,1.28755]
[1744363411750,1.5912,1554.3,1554.2,1.28755]
[1744363412253,1.1982,1554.4,1554.3,1.28749]
[1744363412458,2.48563,1554.4,1554.2,1.2875]
[1744363412659,4.4092,1554.6,1554.2,1.7187]
[1744363412860,2.87863,1554.4,1554.2,3.00621]
[1744363413154,1.28758,1554.2,1554.0,1.28768]
[1744363413368,1.5912,1554.1,1554.0,1.28768]
[1744363413658,2.87888,1554.1,1553.9,6.22395742]
[1744363413862,5.19518,1554.1,1553.9,6.22395742]
[1744363414056,3.86259,1554.4,1553.9,6.22395742]
[1744363414057,3.2078,1554.4,1553.9,13.15573742]
[1744363414250,2.95064,1554.4,1554.2,1.28753]
[1744363414454,1.6632,1554.3,1554.2,1.28753]
[1744363414759,1.6632,1554.3,1554.2,2.93743]
[1744363415347,1.6632,1554.3,1554.2,1.28753]
[1744363415654,2.8334,1554.3,1554.2,1.28753]
[1744363415854,4.12089,1554.3,1554.2,1.28753]
[1744363416757,3.2078,1554.6,1554.1,8.76376]
[1744363416957,2.8334,1554.5,1554.3,1.28743]
[1744363417259,2.90671,1554.4,1554.3,40.8]
[1744363417763,1.6193,1554.4,1554.3,42.08749]
[1744363417958,2.90671,1554.4,1554.3,42.08749]
[1744363418566,1.6193,1554.4,1554.3,42.08749]
[1744363418867,2.45761,1554.5,1554.4,1.28738]
[1744363418868,1.28735,1554.5,1554.4,1.28738]
[1744363419065,2.90665,1554.5,1554.4,1.28738]
[1744363419765,1.28741,1554.4,1554.3,42.08744]
[1744363419966,2.90671,1554.4,1554.3,42.08744]
[1744363420266,1.6193,1554.4,1554.3,42.08744]
[1744363420869,5.66161,1554.6,1554.3,40.8]
[1744363421168,1.28733,1554.5,1554.4,2.95755]
[1744363421353,2.91043,1554.5,1554.4,2.95755]
[1744363421552,10.02942634,1555.4,1554.9,3.2078]
[1744363421765,10.02942634,1555.4,1555.3,4.49447]
[1744363422069,10.02942634,1555.4,1555.3,45.29447]
[1744363422457,14.86032634,1555.4,1555.3,44.0078]
[1744363422669,14.86032634,1555.4,1555.3,45.29447]
[1744363423462,41.93175615,1555.9,1555.5,3.21626]
[1744363423768,23.98696557,1555.9,1555.8,4.49405]
[1744363423966,22.61295557,1555.9,1555.8,4.49405]
[1744363424164,22.61295557,1555.9,1555.8,9.49405]
[1744363424474,6.14745966,1555.9,1555.8,9.49405]
[1744363424664,37.86394112,1556.2,1555.8,3.2078]
[1744363424964,37.86394112,1556.2,1556.1,4.4938]
[1744363425673,37.86394112,1556.2,1556.1,45.2938]
[1744363426870,1.6467,1556.4,1556.1,45.29378]
[1744363427072,12.85922707,1556.3,1556.2,4.49372]
[1744363427462,38.12375062,1556.3,1556.1,40.8]
[1744363427666,12.85922707,1556.2,1556.1,40.8]
[1744363427976,14.50592707,1556.2,1556.1,40.8]
[1744363428166,44.29085062,1556.2,1556.1,40.8]
[1744363428567,39.29085062,1556.2,1556.1,42.086]
[1744363428866,39.29085062,1556.2,1556.0,4.49388]
[1744363429070,12.85922707,1556.1,1556.0,4.49388]
[1744363429265,14.44222707,1556.1,1556.0,45.29388]
[1744363429568,38.06005062,1556.1,1556.0,45.29388]
[1744363430369,38.06005062,1556.1,1556.0,44.0078]
[1744363430679,19.44222707,1556.1,1555.8,3.21744537]
[1744363430862,1.28619,1555.9,1555.6,3.2078]
[1744363431069,7.25557,1555.8,1555.6,1.28636]
[1744363431269,7.25557,1555.8,1555.4,3.2078]
[1744363431573,12.85922707,1555.7,1555.5,1.2865]
[1744363431771,1.583,1555.6,1555.5,42.0865]
[1744363431968,14.44222707,1555.6,1555.5,42.0865]
[1744363432170,33.55630525,1555.6,1555.5,40.8]
[1744363432472,33.55630525,1555.6,1555.5,42.0865]
[1744363432871,33.55630525,1555.6,1555.5,40.8]
[1744363433073,33.55630525,1555.6,1555.5,42.0865]
[1744363433577,33.55630525,1555.6,1555.5,40.8]
[1744363433578,38.05052525,1555.6,1555.5,40.8]
[1744363433779,1.2865,1555.5,1555.4,0.00964537]
[1744363433975,15.88679707,1555.5,1555.3,1.28667]
[1744363434176,15.36220707,1555.4,1555.2,16.38267147]
[1744363434475,15.36220707,1555.4,1555.3,40.8]
[1744363434675,20.33047818,1555.4,1555.3,42.08667]
[1744363434869,37.68408525,1555.4,1555.3,40.8]
[1744363435279,33.18970525,1555.4,1555.3,42.08667]
[1744363435779,34.47628525,1555.4,1555.3,42.08667]
[1744363436076,33.18970525,1555.4,1555.3,40.8]
[1744363436376,1.28667,1555.3,1555.2,0.00964537]
[1744363436673,9.58535068,1555.3,1555.2,1.29639537]
[1744363436879,28.69942886,1555.3,1555.2,42.09639537]
[1744363437081,11.16945068,1555.3,1555.2,42.09639537]
[1744363437379,11.16945068,1555.3,1555.2,45.30419537]
[1744363437773,30.28352886,1555.3,1555.2,45.30419537]
[1744363438167,11.16945068,1555.3,1555.2,45.30419537]
[1744363438371,30.28352886,1555.3,1555.2,45.30419537]
[1744363438979,11.16945068,1555.3,1555.2,45.30419537]
[1744363439377,30.28352886,1555.3,1555.2,45.30419537]
[1744363439674,11.16945068,1555.3,1555.2,45.30419537]
[1744363440479,1.5841,1555.3,1555.2,45.30419537]
[1744363441479,1.2164,1555.4,1555.3,1.28667]
[1744363441686,29.91582886,1555.4,1555.3,1.28667]
[1744363442579,15.80175068,1555.4,1555.2,0.00964537]
[1744363442786,3.21688,1555.2,1554.6,3.2078]
[1744363443083,1.287,1554.9,1554.7,40.8]
[1744363443588,10.87243068,1554.8,1554.7,40.8]
[1744363443783,10.87243068,1554.8,1554.7,42.08716]
[1744363443973,27.40284349,1554.8,1554.7,42.08716]
[1744363444169,28.68992349,1554.8,1554.7,42.08716]
[1744363444375,27.40284349,1554.8,1554.7,42.08716]
[1744363444576,9.58535068,1554.8,1554.7,42.08716]
[1744363444876,11.21915068,1554.8,1554.7,42.08716]
[1744363445182,1.6338,1554.8,1554.7,42.08716]
[1744363445572,11.21915068,1554.8,1554.7,42.08716]
[1744363447583,1.6338,1554.8,1554.7,42.08716]
[1744363448789,11.21915068,1554.8,1554.7,42.08716]
[1744363448988,1.6338,1554.8,1554.7,42.08716]
[1744363449379,1.6338,1554.8,1554.7,43.67816]
[1744363449684,1.6338,1554.8,1554.7,42.08716]
[1744363450681,1e-05,1554.8,1554.7,42.08716]
[1744363450886,1.13844537,1555.0,1554.9,1.287]
[1744363451081,10.72379605,1555.0,1554.9,4.4948]
[1744363451280,0.00964537,1555.0,1554.9,4.4948]
[1744363451887,0.00964537,1555.0,1554.9,45.2948]
[1744363455293,2.8805,1555.1,1555.0,1.28691]
[1744363455490,12.46585068,1555.1,1555.0,1.28691]
[1744363456486,1.28691,1555.0,1554.9,40.8]
[1744363456684,11.27065068,1555.0,1554.7,3.2078]
[1744363456888,9.58535068,1554.9,1554.8,1.28708]
[1744363457187,1.28708,1554.8,1554.6,11.24059428]
[1744363457389,12.42115068,1554.7,1554.6,11.24059428]
[1744363457587,13.70831068,1554.7,1554.6,9.95341428]
[1744363457890,29.08814349,1554.7,1554.6,52.04066428]
[1744363458194,11.27065068,1554.7,1554.6,56.98656428]
[1744363458386,9.58535068,1554.7,1554.6,56.98656428]
[1744363459282,9.58535068,1554.7,1554.6,55.24846428]
[1744363459481,11.27065068,1554.7,1554.6,45.30469537]
[1744363460287,11.27065068,1554.7,1554.6,4.50469537]
[1744363460288,29.08814349,1554.7,1554.6,4.50469537]
[1744363460486,30.37530349,1554.7,1554.6,0.00964537]
[1744363460693,29.08814349,1554.7,1554.6,1.29689537]
[1744363460887,30.37530349,1554.7,1554.6,40.80964537]
[1744363461390,30.37530349,1554.7,1554.6,42.09689537]
[1744363461698,29.08814349,1554.7,1554.6,40.80964537]
[1744363461888,30.37530349,1554.7,1554.6,40.80964537]
[1744363462093,29.08814349,1554.7,1554.6,40.80964537]
[1744363462291,30.37530349,1554.7,1554.6,42.09689537]
[1744363462497,31.49100349,1554.7,1554.6,40.80964537]
[1744363463390,36.49100349,1554.7,1554.6,40.80964537]
[1744363463690,35.20384349,1554.7,1554.6,40.80964537]
[1744363463895,36.49100349,1554.7,1554.6,40.80964537]
[1744363464190,36.49100349,1554.7,1554.6,42.09689537]
[1744363464498,36.49100349,1554.7,1554.6,40.80964537]
[1744363464993,36.49100349,1554.7,1554.6,0.00964537]
[1744363465195,39.69880349,1554.7,1554.6,0.00964537]
[1744363466294,33.41164349,1554.7,1554.6,1.29689537]
[1744363466490,9.58535068,1554.6,1554.2,3.2078]
[1744363466694,4.9293,1554.5,1554.4,1.28741]
[1744363466899,14.51465068,1554.5,1554.4,1.28741]
[1744363467397,1.7215,1554.5,1554.4,1.28741]
[1744363467598,1.1157,1554.7,1554.5,1.28727]
[1744363467898,11.30685068,1554.6,1554.5,1.28727]
[1744363468094,11.30685068,1554.6,1554.5,42.08727]
[1744363469293,1.7215,1554.6,1554.5,42.08727]
[1744363471194,3.2078,1554.8,1554.7,1.28716]
[1744363471396,16.61025744,1554.8,1554.7,1.28716]
[1744363471592,26.19560812,1554.8,1554.7,1.28716]
[1744363473592,27.48268812,1554.8,1554.7,1.28716]
[1744363473794,27.48268812,1554.8,1554.6,2.92178]
[1744363474098,9.58535068,1554.7,1554.6,2.92178]
[1744363474305,11.29425068,1554.7,1554.6,1.28718]
[1744363474497,12.58141068,1554.7,1554.5,42.08727]
[1744363474694,10.75655068,1554.6,1554.5,42.08727]
[1744363474894,12.38355068,1554.6,1554.5,42.08727]
[1744363475095,12.38355068,1554.6,1554.5,42.08733]
[1744363475096,25.38915812,1554.6,1554.5,42.08733]
[1744363475903,25.38915812,1554.6,1554.5,40.8]
[1744363476406,24.10190812,1554.6,1554.5,42.08733]
[1744363476903,25.38915812,1554.6,1554.5,42.08733]
[1744363477198,11.21235068,1554.6,1554.5,42.08733]
[1744363477499,24.21795812,1554.6,1554.5,42.08733]
[1744363478397,22.93070812,1554.6,1554.5,42.08733]
[1744363478603,11.21235068,1554.6,1554.5,42.08733]
[1744363479003,12.49960068,1554.6,1554.5,42.08733]
[1744363479406,11.21235068,1554.6,1554.5,42.08733]
[1744363479802,12.49960068,1554.6,1554.5,42.08733]
[1744363480004,11.21235068,1554.6,1554.5,42.08733]
[1744363480502,9.58535068,1554.6,1554.5,42.08733]
[1744363480702,11.18805068,1554.6,1554.5,42.08733]
[1744363482507,11.18805068,1554.6,1554.5,66.16430011]
[1744363483103,11.18805068,1554.6,1554.5,69.37210011]
[1744363483406,1.28708,1554.8,1554.7,1.2871]
[1744363483609,12.54923068,1554.8,1554.7,1.2871]
[1744363483806,24.26758812,1554.8,1554.7,1.2871]
[1744363484007,22.98050812,1554.8,1554.7,1.2871]
[1744363484204,11.26215068,1554.8,1554.7,1.2871]
[1744363485104,11.26215068,1554.8,1554.7,2.9221]
[1744363486309,1.6768,1554.8,1554.7,2.9221]
[1744363486607,11.26215068,1554.8,1554.7,2.9221]
[1744363487500,11.26215068,1554.8,1554.7,32.16302724]
[1744363487809,11.26215068,1554.8,1554.7,72.96302724]
[1744363488503,24.26758812,1554.8,1554.7,70.04092724]
[1744363489003,24.26758812,1554.8,1554.7,29.24092724]
[1744363489404,29.26758812,1554.8,1554.7,29.24092724]
[1744363489901,29.26758812,1554.8,1554.7,25.53232455]
[1744363489902,11.26215068,1554.8,1554.7,25.53232455]
[1744363490101,24.26758812,1554.8,1554.7,24.24516455]
[1744363490510,29.26758812,1554.8,1554.7,24.24516455]
[1744363491613,17.54923068,1554.8,1554.7,12.52680711]
[1744363492213,19.47993068,1554.8,1554.4,26.48353025]
[1744363492413,12.79315068,1554.7,1554.4,26.48353025]
[1744363492613,1.6487,1554.6,1554.4,26.48353025]
[1744363492814,12.37925068,1554.6,1554.4,26.48353025]
[1744363493009,9.58535068,1554.5,1554.4,26.48353025]
[1744363493214,11.19465068,1554.5,1554.4,26.48353025]
[1744363493416,11.19465068,1554.5,1554.4,28.11843025]
[1744363494114,11.19465068,1554.5,1554.4,26.48353025]
[1744363495414,11.19465068,1554.5,1554.4,28.11843025]
[1744363495609,3.2078,1554.9,1554.4,31.83108025]
[1744363495812,10.74405068,1554.8,1554.7,1.28712]
[1744363496111,9.58535068,1554.8,1554.7,4.49492]
[1744363496308,9.58535068,1554.8,1554.7,45.29492]
[1744363496910,9.58535068,1554.8,1554.7,46.89892]
[1744363498315,1.6044,1554.9,1554.8,1.28708]
[1744363498515,11.18975068,1554.9,1554.8,1.28708]
[1744363498715,11.18975068,1554.9,1554.8,2.89108]
[1744363499122,9.58535068,1554.9,1554.8,2.89108]
[1744363499419,1.6044,1555.0,1554.9,1.287]
[1744363499711,0.00964537,1555.2,1555.1,1.28683]
[1744363500117,9.59499605,1555.2,1555.1,1.28683]
[1744363500318,9.59499605,1555.2,1555.0,2.92245]
[1744363500616,9.58535068,1555.1,1555.0,2.92245]
[1744363500815,9.58535068,1555.1,1554.9,4.49473]
[1744363501017,1.7441,1555.0,1554.9,1.28693]
[1744363501819,12.61636068,1555.0,1554.9,1.28693]
[1744363502519,12.61636068,1555.0,1554.9,16.38290147]
[1744363502720,12.61636068,1555.0,1554.9,15.09597147]
[1744363505518,12.61636068,1555.0,1554.9,10.0998522]
[1744363505719,12.61636068,1555.0,1554.9,11.3868522]
[1744363505920,12.61636068,1555.0,1554.9,10.0998522]
[1744363506627,12.61636068,1555.0,1554.9,11.3868522]
[1744363508330,12.61636068,1555.0,1554.9,10.0998522]
[1744363509422,12.61636068,1555.0,1554.8,26.48288367]
[1744363509423,1.287,1554.9,1554.8,26.48288367]
[1744363509625,15.82575068,1554.9,1554.8,26.48288367]
[1744363510119,11.33095068,1554.9,1554.8,26.48288367]
[1744363510931,12.61795068,1554.9,1554.8,26.48288367]
[1744363512122,12.61795068,1554.9,1554.8,11.3869122]
[1744363512429,11.33095068,1554.9,1554.8,11.3869122]
[1744363513131,11.33095068,1554.9,1554.8,13.0214122]
[1744363514329,1.257,1555.1,1555.0,1.28691]
[1744363514531,9.58535068,1555.0,1554.9,1.28693]
[1744363514731,12.46435068,1555.1,1554.9,1.28693]
[1744363515027,1.6952,1555.0,1554.9,1.28693]
[1744363515225,11.28055068,1555.0,1554.9,1.28693]
[1744363515427,12.56746068,1555.0,1554.9,1.28693]
[1744363515627,12.56746068,1555.0,1554.8,32.81353353]
[1744363515829,1.6952,1554.9,1554.8,32.81353353]
[1744363516226,11.28055068,1554.9,1554.8,31.55963353]
[1744363516627,11.28055068,1554.9,1554.8,29.95573353]
[1744363516835,12.56755068,1554.9,1554.8,28.66871353]
[1744363517533,11.28055068,1554.9,1554.8,29.95579353]